[Event "Titled Tuesday Blitz December 06 Late 2022"]
[White "Pham, Le Thao Nguyen"]
[Black "Baches Garcia, Guillermo"]
[WhiteFideId "12401226"]
[BlackFideId "2209764"]
[WhiteElo "2282"]
[BlackElo "2451"]
[Result "0-1"]
[Round "06"]
[TimeControl "180+1"]
[Date "2022.12.07"]
[WhiteClock "0:00:12"]
[BlackClock "0:00:12"]

1. Nf3 {[%clk 0:03:00]}  d5 {[%clk 0:02:59]} 2. d4 {[%clk 0:02:59]}  Nf6 {[%clk 0:02:59]} 3. Bg5 {[%clk 0:02:58]}  e6 {[%clk 0:02:57]} 4. e3 {[%clk 0:02:58]}  Be7 {[%clk 0:02:54]} 5. Be2 {[%clk 0:02:58]}  h6 {[%clk 0:02:54]} 6. Bh4 {[%clk 0:02:56]}  Ne4 {[%clk 0:02:51]} 7. Bxe7 {[%clk 0:02:55]}  Qxe7 {[%clk 0:02:51]} 8. O-O {[%clk 0:02:56]}  O-O {[%clk 0:02:50]} 9. Ne5 {[%clk 0:02:56]}  Nd7 {[%clk 0:02:48]} 10. Nd3 {[%clk 0:02:55]}  c5 {[%clk 0:02:47]} 11. c3 {[%clk 0:02:48]}  b6 {[%clk 0:02:31]} 12. Na3 {[%clk 0:02:46]}  Bb7 {[%clk 0:02:29]} 13. Rc1 {[%clk 0:02:42]}  f5 {[%clk 0:02:23]} 14. f4 {[%clk 0:02:33]}  c4 {[%clk 0:02:12]} 15. Nf2 {[%clk 0:02:28]}  Ndf6 {[%clk 0:02:04]} 16. Bf3 {[%clk 0:02:25]}  Nd6 {[%clk 0:01:58]} 17. h3 {[%clk 0:02:23]}  b5 {[%clk 0:01:56]} 18. Kh1 {[%clk 0:02:13]}  a5 {[%clk 0:01:55]} 19. Nc2 {[%clk 0:02:12]}  b4 {[%clk 0:01:28]} 20. cxb4 {[%clk 0:02:08]}  axb4 {[%clk 0:01:28]} 21. Nxb4 {[%clk 0:02:08]}  Nde4 {[%clk 0:01:19]} 22. Bxe4 {[%clk 0:02:04]}  Qxb4 {[%clk 0:01:15]} 23. Bb1 {[%clk 0:02:03]}  Qxb2 {[%clk 0:01:13]} 24. Rc2 {[%clk 0:01:58]}  Qa3 {[%clk 0:01:08]} 25. Qc1 {[%clk 0:01:56]}  Bc6 {[%clk 0:01:02]} 26. Qe1 {[%clk 0:01:35]}  Rab8 {[%clk 0:00:54]} 27. Rc3 {[%clk 0:01:31]}  Qa5 {[%clk 0:00:47]} 28. Qc1 {[%clk 0:01:17]}  Rb4 {[%clk 0:00:44]} 29. Ra3 {[%clk 0:01:15]}  Qb6 {[%clk 0:00:39]} 30. Bc2 {[%clk 0:01:12]}  Rb8 {[%clk 0:00:36]} 31. Nd1 {[%clk 0:01:08]}  Ra8 {[%clk 0:00:18]} 32. Rxa8+ {[%clk 0:01:06]}  Bxa8 {[%clk 0:00:18]} 33. Qa3 {[%clk 0:01:06]}  Bc6 {[%clk 0:00:15]} 34. Qc3 {[%clk 0:00:58]}  Qb8 {[%clk 0:00:12]} 35. Qa3 {[%clk 0:00:54]}  Rb6 {[%clk 0:00:12]} 36. Qc5 {[%clk 0:00:52]}  Be8 {[%clk 0:00:11]} 37. a4 {[%clk 0:00:49]}  Qd6 {[%clk 0:00:11]} 38. Qc8 {[%clk 0:00:48]}  Kf7 {[%clk 0:00:10]} 39. a5 {[%clk 0:00:47]}  Rb8 {[%clk 0:00:10]} 40. Qc5 {[%clk 0:00:36]}  Qxc5 {[%clk 0:00:10]} 41. dxc5 {[%clk 0:00:37]}  Ra8 {[%clk 0:00:10]} 42. Nc3 {[%clk 0:00:30]}  Rxa5 {[%clk 0:00:10]} 43. Rb1 {[%clk 0:00:28]}  Rxc5 {[%clk 0:00:10]} 44. Rb7+ {[%clk 0:00:27]}  Bd7 {[%clk 0:00:09]} 45. Na4 {[%clk 0:00:23]}  Rc8 {[%clk 0:00:07]} 46. Nb6 {[%clk 0:00:22]}  Rd8 {[%clk 0:00:05]} 47. Ba4 {[%clk 0:00:19]}  Ke7 {[%clk 0:00:06]} 48. Bc2 {[%clk 0:00:09]}  Kd6 {[%clk 0:00:05]} 49. Na4 {[%clk 0:00:09]}  Bxa4 {[%clk 0:00:03]} 50. Bxa4 {[%clk 0:00:08]}  g5 {[%clk 0:00:03]} 51. fxg5 {[%clk 0:00:07]}  hxg5 {[%clk 0:00:04]} 52. Rb6+ {[%clk 0:00:08]}  Ke5 {[%clk 0:00:04]} 53. g3 {[%clk 0:00:06]}  Ne4 {[%clk 0:00:04]} 54. h4 {[%clk 0:00:06]}  Ra8 {[%clk 0:00:04]} 55. Bd7 {[%clk 0:00:05]}  Nc5 {[%clk 0:00:04]} 56. Bc6 {[%clk 0:00:04]}  Ra1+ {[%clk 0:00:03]} 57. Kg2 {[%clk 0:00:05]}  gxh4 {[%clk 0:00:03]} 58. gxh4 {[%clk 0:00:04]}  Ne4 {[%clk 0:00:03]} 59. h5 {[%clk 0:00:04]}  Nf6 {[%clk 0:00:03]} 60. Bb5 {[%clk 0:00:02]}  Ra7 {[%clk 0:00:03]} 61. h6 {[%clk 0:00:02]}  Rh7 {[%clk 0:00:03]} 62. Rb8 {[%clk 0:00:02]}  Rxh6 {[%clk 0:00:03]} 63. Rf8 {[%clk 0:00:02]}  Rg6+ {[%clk 0:00:03]} 64. Kf2 {[%clk 0:00:01]}  Ne4+ {[%clk 0:00:04]} 65. Ke2 {[%clk 0:00:01]}  Nd6 {[%clk 0:00:04]} 66. Kf3 {[%clk 0:00:02]}  Rf6 {[%clk 0:00:04]} 67. Rxf6 {[%clk 0:00:02]}  Kxf6 {[%clk 0:00:04]} 68. Bc6 {[%clk 0:00:03]}  Ke5 {[%clk 0:00:05]} 69. Kg3 {[%clk 0:00:03]}  c3 {[%clk 0:00:05]} 70. Kf3 {[%clk 0:00:03]}  Ne4 {[%clk 0:00:06]} 71. Ba4 {[%clk 0:00:03]}  d4 {[%clk 0:00:06]} 72. exd4+ {[%clk 0:00:02]}  Kxd4 {[%clk 0:00:06]} 73. Bc2 {[%clk 0:00:03]}  e5 {[%clk 0:00:07]} 74. Ke2 {[%clk 0:00:02]}  Nd6 {[%clk 0:00:07]} 75. Kf3 {[%clk 0:00:02]}  f4 {[%clk 0:00:07]} 76. Ke2 {[%clk 0:00:03]}  e4 {[%clk 0:00:07]} 77. Kf2 {[%clk 0:00:03]}  Nf5 {[%clk 0:00:08]} 78. Ke2 {[%clk 0:00:04]}  Ne7 {[%clk 0:00:08]} 79. Kf2 {[%clk 0:00:04]}  Nd5 {[%clk 0:00:09]} 80. Ke2 {[%clk 0:00:04]}  Nb4 {[%clk 0:00:09]} 81. Bb1 {[%clk 0:00:04]}  c2 {[%clk 0:00:09]} 82. Bxc2 {[%clk 0:00:04]}  Nxc2 {[%clk 0:00:10]} 83. Kf2 {[%clk 0:00:05]}  Nb4 {[%clk 0:00:10]} 84. Ke2 {[%clk 0:00:05]}  Nc6 {[%clk 0:00:11]} 85. Kf2 {[%clk 0:00:06]}  Nd8 {[%clk 0:00:12]} 86. Ke2 {[%clk 0:00:07]}  Nf7 {[%clk 0:00:12]} 87. Kf2 {[%clk 0:00:07]}  Ne5 {[%clk 0:00:12]} 88. Ke2 {[%clk 0:00:08]}  f3+ {[%clk 0:00:12]} 89. Kf2 {[%clk 0:00:09]}  Nd3+ {[%clk 0:00:12]} 90. Kf1 {[%clk 0:00:09]}  Ke3 {[%clk 0:00:12]} 91. Kg1 {[%clk 0:00:10]}  Ke2 {[%clk 0:00:13]} 92. Kh2 {[%clk 0:00:09]}  e3 {[%clk 0:00:13]} 93. Kg3 {[%clk 0:00:09]}  Nc5 {[%clk 0:00:13]} 94. Kf4 {[%clk 0:00:08]}  Na6 {[%clk 0:00:13]} 95. Kg3 {[%clk 0:00:09]}  Nc7 {[%clk 0:00:13]} 96. Kf4 {[%clk 0:00:09]}  f2 {[%clk 0:00:13]} 97. Kg3 {[%clk 0:00:10]}  f1=Q {[%clk 0:00:14]} 98. Kg4 {[%clk 0:00:09]}  Qf2 {[%clk 0:00:13]} 99. Kh3 {[%clk 0:00:09]}  Kf1 {[%clk 0:00:13]} 100. Kg4 {[%clk 0:00:09]}  e2 {[%clk 0:00:13]} 101. Kh3 {[%clk 0:00:09]}  Qg2+ {[%clk 0:00:13]} 102. Kh4 {[%clk 0:00:09]}  e1=Q+ {[%clk 0:00:13]} 103. Kh5 {[%clk 0:00:10]}  Qe5+ {[%clk 0:00:13]} 104. Kh6 {[%clk 0:00:11]}  Qc6+ {[%clk 0:00:13]} 105. Kh7 {[%clk 0:00:12]}  Qh5+ {[%clk 0:00:12]} 106. Kg8 {[%clk 0:00:13]}  Qcg6+ {[%clk 0:00:12]} 107. Kf8 {[%clk 0:00:12]}  Qe8+ {[%clk 0:00:12]} 108. Kg7 {[%clk 0:00:12]}  Qhg6# {[%clk 0:00:12]} 0-1


[Site "https://www.chess.com"]

[Event "Titled Tuesday Blitz December 06 Late 2022"]
[White "Przybylski, Wojciech"]
[Black "Ambartsumova, Karina"]
[WhiteFideId "1117599"]
[BlackFideId "4166299"]
[WhiteElo "2217"]
[BlackElo "2319"]
[Result "0-1"]
[Round "06"]
[TimeControl "180+1"]
[Date "2022.12.07"]
[WhiteClock "0:00:09"]
[BlackClock "0:00:12"]

1. e4 {[%clk 0:02:56]}  e5 {[%clk 0:03:00]} 2. Nf3 {[%clk 0:02:39]}  Nc6 {[%clk 0:03:00]} 3. Bb5 {[%clk 0:02:36]}  Nf6 {[%clk 0:02:59]} 4. O-O {[%clk 0:02:33]}  Nxe4 {[%clk 0:02:59]} 5. d4 {[%clk 0:02:28]}  Nd6 {[%clk 0:02:58]} 6. Bxc6 {[%clk 0:02:29]}  dxc6 {[%clk 0:02:59]} 7. dxe5 {[%clk 0:02:29]}  Nf5 {[%clk 0:03:00]} 8. Qxd8+ {[%clk 0:02:29]}  Kxd8 {[%clk 0:03:01]} 9. h3 {[%clk 0:02:27]}  Be7 {[%clk 0:02:59]} 10. Nc3 {[%clk 0:02:21]}  Be6 {[%clk 0:02:58]} 11. Bf4 {[%clk 0:02:21]}  h6 {[%clk 0:02:55]} 12. a4 {[%clk 0:02:19]}  a5 {[%clk 0:02:53]} 13. Rad1+ {[%clk 0:02:15]}  Ke8 {[%clk 0:02:47]} 14. g4 {[%clk 0:02:13]}  Nh4 {[%clk 0:02:41]} 15. Nxh4 {[%clk 0:02:06]}  Bxh4 {[%clk 0:02:41]} 16. Kg2 {[%clk 0:02:05]}  Ke7 {[%clk 0:02:23]} 17. Be3 {[%clk 0:01:47]}  b6 {[%clk 0:02:23]} 18. f4 {[%clk 0:01:47]}  Bc4 {[%clk 0:02:21]} 19. Rg1 {[%clk 0:01:43]}  Rad8 {[%clk 0:02:16]} 20. b3 {[%clk 0:01:39]}  Bd5+ {[%clk 0:02:12]} 21. Nxd5+ {[%clk 0:01:34]}  cxd5 {[%clk 0:02:13]} 22. f5 {[%clk 0:01:28]}  c5 {[%clk 0:02:10]} 23. c3 {[%clk 0:01:25]}  Rd7 {[%clk 0:01:44]} 24. Kf3 {[%clk 0:01:23]}  Rhd8 {[%clk 0:01:41]} 25. Bf4 {[%clk 0:01:18]}  d4 {[%clk 0:01:35]} 26. c4 {[%clk 0:01:17]}  d3 {[%clk 0:01:22]} 27. Rd2 {[%clk 0:01:17]}  Rd4 {[%clk 0:01:21]} 28. Be3 {[%clk 0:01:15]}  Bg5 {[%clk 0:01:04]} 29. Rgd1 {[%clk 0:00:37]}  R4d7 {[%clk 0:00:37]} 30. Ke4 {[%clk 0:00:28]}  Rd4+ {[%clk 0:00:26]} 31. Kf3 {[%clk 0:00:28]}  R4d7 {[%clk 0:00:26]} 32. Bxg5+ {[%clk 0:00:21]}  hxg5 {[%clk 0:00:27]} 33. Ke3 {[%clk 0:00:22]}  Rh8 {[%clk 0:00:27]} 34. Rh1 {[%clk 0:00:21]}  Rd4 {[%clk 0:00:20]} 35. Rxd3 {[%clk 0:00:20]}  Rxg4 {[%clk 0:00:20]} 36. Rd6 {[%clk 0:00:16]}  Rg3+ {[%clk 0:00:19]} 37. Ke4 {[%clk 0:00:16]}  Rhxh3 {[%clk 0:00:16]} 38. Rxh3 {[%clk 0:00:14]}  Rxh3 {[%clk 0:00:17]} 39. Rxb6 {[%clk 0:00:14]}  Rc3 {[%clk 0:00:13]} 40. Rb7+ {[%clk 0:00:14]}  Ke8 {[%clk 0:00:12]} 41. f6 {[%clk 0:00:14]}  gxf6 {[%clk 0:00:11]} 42. exf6 {[%clk 0:00:15]}  g4 {[%clk 0:00:10]} 43. Kd5 {[%clk 0:00:12]}  g3 {[%clk 0:00:07]} 44. Rb8+ {[%clk 0:00:08]}  Kd7 {[%clk 0:00:08]} 45. Rb7+ {[%clk 0:00:08]}  Ke8 {[%clk 0:00:08]} 46. Kd6 {[%clk 0:00:08]}  Rd3+ {[%clk 0:00:08]} 47. Kc7 {[%clk 0:00:06]}  Rd7+ {[%clk 0:00:07]} 48. Kc6 {[%clk 0:00:07]}  Rxb7 {[%clk 0:00:08]} 49. Kxb7 {[%clk 0:00:07]}  g2 {[%clk 0:00:09]} 50. Kb6 {[%clk 0:00:08]}  g1=Q {[%clk 0:00:10]} 51. Kxa5 {[%clk 0:00:08]}  Qd4 {[%clk 0:00:10]} 52. Kb5 {[%clk 0:00:09]}  Qd6 {[%clk 0:00:09]} 53. a5 {[%clk 0:00:09]}  Kd7 {[%clk 0:00:10]} 54. a6 {[%clk 0:00:10]}  Qc6+ {[%clk 0:00:10]} 55. Ka5 {[%clk 0:00:10]}  Kc7 {[%clk 0:00:11]} 56. b4 {[%clk 0:00:09]}  Qb6+ {[%clk 0:00:11]} 57. Ka4 {[%clk 0:00:09]}  Qxb4# {[%clk 0:00:12]} 0-1


[Site "https://www.chess.com"]

[Event "Titled Tuesday Blitz December 06 Late 2022"]
[White "Pultinevicius, Paulius"]
[Black "Sjugirov, Sanan"]
[WhiteFideId "12809390"]
[BlackFideId "4189302"]
[WhiteElo "2486"]
[BlackElo "2613"]
[Result "1-0"]
[Round "06"]
[TimeControl "180+1"]
[Date "2022.12.06"]
[WhiteClock "0:00:35"]
[BlackClock "0:00:03"]

1. b3 {[%clk 0:03:00]}  d5 {[%clk 0:02:56]} 2. Bb2 {[%clk 0:03:00]}  Bf5 {[%clk 0:02:57]} 3. e3 {[%clk 0:02:59]}  e6 {[%clk 0:02:57]} 4. Ne2 {[%clk 0:02:59]}  h6 {[%clk 0:02:56]} 5. d4 {[%clk 0:02:53]}  Nf6 {[%clk 0:02:55]} 6. Ng3 {[%clk 0:02:53]}  Bg6 {[%clk 0:02:55]} 7. Bd3 {[%clk 0:02:46]}  Bxd3 {[%clk 0:02:54]} 8. Qxd3 {[%clk 0:02:45]}  h5 {[%clk 0:02:51]} 9. h3 {[%clk 0:02:43]}  Nbd7 {[%clk 0:02:50]} 10. Nd2 {[%clk 0:02:41]}  c6 {[%clk 0:02:47]} 11. O-O {[%clk 0:02:31]}  Bd6 {[%clk 0:02:41]} 12. Ne2 {[%clk 0:02:28]}  O-O {[%clk 0:02:30]} 13. e4 {[%clk 0:02:23]}  dxe4 {[%clk 0:02:24]} 14. Nxe4 {[%clk 0:02:24]}  Nxe4 {[%clk 0:02:24]} 15. Qxe4 {[%clk 0:02:25]}  Re8 {[%clk 0:02:20]} 16. Rad1 {[%clk 0:02:20]}  Qa5 {[%clk 0:02:19]} 17. a3 {[%clk 0:02:08]}  Rad8 {[%clk 0:02:06]} 18. c4 {[%clk 0:02:00]}  Nf6 {[%clk 0:01:51]} 19. Qe3 {[%clk 0:01:57]}  Qf5 {[%clk 0:01:40]} 20. Rfe1 {[%clk 0:01:49]}  Bc7 {[%clk 0:01:38]} 21. Ng3 {[%clk 0:01:38]}  Qg6 {[%clk 0:01:34]} 22. Nf1 {[%clk 0:01:30]}  b5 {[%clk 0:01:12]} 23. Nd2 {[%clk 0:01:28]}  bxc4 {[%clk 0:01:10]} 24. bxc4 {[%clk 0:01:28]}  Ba5 {[%clk 0:01:01]} 25. Bc3 {[%clk 0:01:23]}  Bc7 {[%clk 0:00:41]} 26. Qf3 {[%clk 0:01:18]}  Rc8 {[%clk 0:00:39]} 27. Nb3 {[%clk 0:01:12]}  Bd6 {[%clk 0:00:38]} 28. Nc5 {[%clk 0:01:12]}  Rc7 {[%clk 0:00:20]} 29. Ba5 {[%clk 0:01:08]}  Rcc8 {[%clk 0:00:20]} 30. Rb1 {[%clk 0:01:03]}  Bxc5 {[%clk 0:00:17]} 31. dxc5 {[%clk 0:01:03]}  e5 {[%clk 0:00:18]} 32. Rb7 {[%clk 0:00:56]}  e4 {[%clk 0:00:18]} 33. Qf4 {[%clk 0:00:56]}  a6 {[%clk 0:00:13]} 34. Re3 {[%clk 0:00:50]}  Nh7 {[%clk 0:00:08]} 35. Bc3 {[%clk 0:00:44]}  h4 {[%clk 0:00:02]} 36. Qxh4 {[%clk 0:00:42]}  Qh6 {[%clk 0:00:02]} 37. Qxh6 {[%clk 0:00:37]}  gxh6 {[%clk 0:00:03]} 38. Rg3+ {[%clk 0:00:38]}  Kf8 {[%clk 0:00:04]} 39. Bg7+ {[%clk 0:00:38]}  Kg8 {[%clk 0:00:04]} 40. Bxh6+ {[%clk 0:00:38]}  Kh8 {[%clk 0:00:04]} 41. Bg7+ {[%clk 0:00:34]}  Kg8 {[%clk 0:00:04]} 42. Be5+ {[%clk 0:00:35]}  Kf8 {[%clk 0:00:03]} 43. Bd6+ {[%clk 0:00:35]} 1-0


[Site "https://www.chess.com"]

[Event "Titled Tuesday Blitz December 06 Late 2022"]
[White "Putnam, Liam"]
[Black "Perez Leiva, Jerzy Jesus"]
[WhiteFideId "30938279"]
[BlackFideId "3524337"]
[WhiteElo "2727"]
[BlackElo "2599"]
[Result "1-0"]
[Round "06"]
[TimeControl "180+1"]
[Date "2022.12.07"]
[WhiteClock "0:00:10"]
[BlackClock "0:00:03"]

1. b3 {[%clk 0:03:00]}  b6 {[%clk 0:02:59]} 2. Bb2 {[%clk 0:03:01]}  Bb7 {[%clk 0:02:59]} 3. Nf3 {[%clk 0:03:01]}  Nf6 {[%clk 0:02:59]} 4. e3 {[%clk 0:03:02]}  e6 {[%clk 0:03:00]} 5. c4 {[%clk 0:03:02]}  c5 {[%clk 0:03:00]} 6. Nc3 {[%clk 0:03:02]}  Be7 {[%clk 0:03:00]} 7. d4 {[%clk 0:02:56]}  O-O {[%clk 0:02:54]} 8. d5 {[%clk 0:02:56]}  exd5 {[%clk 0:02:48]} 9. cxd5 {[%clk 0:02:56]}  Re8 {[%clk 0:02:48]} 10. Bd3 {[%clk 0:02:55]}  d6 {[%clk 0:02:47]} 11. O-O {[%clk 0:02:55]}  Nbd7 {[%clk 0:02:46]} 12. e4 {[%clk 0:02:53]}  Bf8 {[%clk 0:02:45]} 13. Qc2 {[%clk 0:02:50]}  a6 {[%clk 0:02:45]} 14. a4 {[%clk 0:02:49]}  Bc8 {[%clk 0:02:43]} 15. Ne2 {[%clk 0:02:41]}  Ng4 {[%clk 0:02:25]} 16. Ng3 {[%clk 0:02:20]}  Nde5 {[%clk 0:02:13]} 17. Nxe5 {[%clk 0:02:17]}  Nxe5 {[%clk 0:02:09]} 18. Be2 {[%clk 0:02:17]}  Qh4 {[%clk 0:01:59]} 19. Qc3 {[%clk 0:02:09]}  Ng6 {[%clk 0:01:58]} 20. Rae1 {[%clk 0:01:45]}  Nf4 {[%clk 0:01:43]} 21. Bc4 {[%clk 0:01:38]}  Qg4 {[%clk 0:01:08]} 22. f3 {[%clk 0:01:11]}  Qh4 {[%clk 0:01:01]} 23. Ne2 {[%clk 0:01:06]}  Ng6 {[%clk 0:00:56]} 24. g3 {[%clk 0:00:55]}  Qd8 {[%clk 0:00:40]} 25. Nf4 {[%clk 0:00:51]}  Ne5 {[%clk 0:00:37]} 26. Kh1 {[%clk 0:00:49]}  Bd7 {[%clk 0:00:33]} 27. Nh5 {[%clk 0:00:43]}  Qg5 {[%clk 0:00:30]} 28. g4 {[%clk 0:00:34]}  Qh4 {[%clk 0:00:17]} 29. Be2 {[%clk 0:00:25]}  f6 {[%clk 0:00:06]} 30. Rg1 {[%clk 0:00:21]}  g6 {[%clk 0:00:06]} 31. Ng3 {[%clk 0:00:18]}  Bh6 {[%clk 0:00:06]} 32. Bc1 {[%clk 0:00:17]}  Bg5 {[%clk 0:00:06]} 33. f4 {[%clk 0:00:16]}  Nxg4 {[%clk 0:00:03]} 34. Bxg4 {[%clk 0:00:16]}  Bxg4 {[%clk 0:00:04]} 35. fxg5 {[%clk 0:00:15]}  Re5 {[%clk 0:00:04]} 36. gxf6 {[%clk 0:00:13]}  Rf8 {[%clk 0:00:05]} 37. Bf4 {[%clk 0:00:11]}  Rxf6 {[%clk 0:00:02]} 38. Bxe5 {[%clk 0:00:10]}  Bf3+ {[%clk 0:00:03]} 39. Rg2 {[%clk 0:00:11]}  Qxh2+ {[%clk 0:00:03]} 40. Kxh2 {[%clk 0:00:10]} 1-0


[Site "https://www.chess.com"]

[Event "Titled Tuesday Blitz December 06 Late 2022"]
[White "Renjith, Sravan"]
[Black "Ankerst, Mihael"]
[WhiteFideId "4306783"]
[BlackFideId "14602369"]
[WhiteElo "2072"]
[BlackElo "2368"]
[Result "0-1"]
[Round "06"]
[TimeControl "180+1"]
[Date "2022.12.07"]
[WhiteClock "0:01:22"]
[BlackClock "0:00:35"]

1. Nf3 {[%clk 0:03:00]}  Nf6 {[%clk 0:02:54]} 2. d4 {[%clk 0:02:51]}  g6 {[%clk 0:02:55]} 3. c4 {[%clk 0:02:50]}  Bg7 {[%clk 0:02:56]} 4. g3 {[%clk 0:02:48]}  d6 {[%clk 0:02:57]} 5. Bg2 {[%clk 0:02:48]}  O-O {[%clk 0:02:57]} 6. O-O {[%clk 0:02:49]}  Nbd7 {[%clk 0:02:58]} 7. Nc3 {[%clk 0:02:47]}  e5 {[%clk 0:02:59]} 8. d5 {[%clk 0:02:48]}  a5 {[%clk 0:02:58]} 9. e4 {[%clk 0:02:48]}  Nc5 {[%clk 0:02:58]} 10. Ne1 {[%clk 0:02:47]}  Nfd7 {[%clk 0:02:58]} 11. Nd3 {[%clk 0:02:47]}  f5 {[%clk 0:02:59]} 12. f4 {[%clk 0:02:45]}  Nxd3 {[%clk 0:02:57]} 13. Qxd3 {[%clk 0:02:45]}  Nc5 {[%clk 0:02:57]} 14. Qe2 {[%clk 0:02:42]}  fxe4 {[%clk 0:02:56]} 15. Nxe4 {[%clk 0:02:43]}  Nxe4 {[%clk 0:02:54]} 16. Bxe4 {[%clk 0:02:44]}  Bh3 {[%clk 0:02:54]} 17. Bg2 {[%clk 0:02:44]}  Qd7 {[%clk 0:02:49]} 18. fxe5 {[%clk 0:02:41]}  Rxf1+ {[%clk 0:02:48]} 19. Qxf1 {[%clk 0:02:30]}  Rf8 {[%clk 0:02:43]} 20. Bf4 {[%clk 0:02:24]}  Bxg2 {[%clk 0:02:32]} 21. Qxg2 {[%clk 0:02:25]}  Bxe5 {[%clk 0:02:25]} 22. Bxe5 {[%clk 0:02:24]}  dxe5 {[%clk 0:02:26]} 23. Rf1 {[%clk 0:02:19]}  Qd6 {[%clk 0:02:24]} 24. Rxf8+ {[%clk 0:02:15]}  Qxf8 {[%clk 0:02:24]} 25. Qf2 {[%clk 0:02:15]}  Qb4 {[%clk 0:02:17]} 26. b3 {[%clk 0:02:12]}  a4 {[%clk 0:02:18]} 27. Qe3 {[%clk 0:02:11]}  axb3 {[%clk 0:02:16]} 28. axb3 {[%clk 0:02:12]}  Kf7 {[%clk 0:02:04]} 29. Qxe5 {[%clk 0:02:08]}  Qc5+ {[%clk 0:01:45]} 30. Kg2 {[%clk 0:02:05]}  Kf8 {[%clk 0:01:37]} 31. Qh8+ {[%clk 0:02:04]}  Kf7 {[%clk 0:01:36]} 32. Qxh7+ {[%clk 0:02:04]}  Kf6 {[%clk 0:01:37]} 33. Qh8+ {[%clk 0:02:04]}  Kf5 {[%clk 0:01:34]} 34. Qc8+ {[%clk 0:02:03]}  Kg5 {[%clk 0:01:28]} 35. h4+ {[%clk 0:02:02]}  Kf6 {[%clk 0:01:23]} 36. Qe6+ {[%clk 0:02:02]}  Kg7 {[%clk 0:01:22]} 37. Qe5+ {[%clk 0:01:52]}  Kh7 {[%clk 0:01:18]} 38. Kh3 {[%clk 0:01:49]}  Kg8 {[%clk 0:00:54]} 39. Kg4 {[%clk 0:01:42]}  Kh7 {[%clk 0:00:54]} 40. Kg5 {[%clk 0:01:37]}  b6 {[%clk 0:00:53]} 41. Qe4 {[%clk 0:01:25]}  Qd6 {[%clk 0:00:50]} 42. Qe6 {[%clk 0:01:23]}  Qxg3+ {[%clk 0:00:49]} 43. Qg4 {[%clk 0:01:24]}  Qe5+ {[%clk 0:00:47]} 44. Qf5 {[%clk 0:01:22]}  Qxf5# {[%clk 0:00:35]} 0-1


[Site "https://www.chess.com"]

[Event "Titled Tuesday Blitz December 06 Late 2022"]
[White "Romero Ruscalleda, Josep"]
[Black "Kaplan, Avi Harrison"]
[WhiteFideId "2231859"]
[BlackFideId "30934559"]
[WhiteElo "2183"]
[BlackElo "1983"]
[Result "0-1"]
[Round "06"]
[TimeControl "180+1"]
[Date "2022.12.07"]
[WhiteClock "0:00:03"]
[BlackClock "0:00:08"]

1. e4 {[%clk 0:03:00]}  c5 {[%clk 0:02:58]} 2. c3 {[%clk 0:02:59]}  Nf6 {[%clk 0:02:58]} 3. e5 {[%clk 0:02:58]}  Nd5 {[%clk 0:02:59]} 4. Nf3 {[%clk 0:02:57]}  Nc6 {[%clk 0:02:58]} 5. Bc4 {[%clk 0:02:56]}  Nb6 {[%clk 0:02:58]} 6. Bb3 {[%clk 0:02:56]}  d5 {[%clk 0:02:44]} 7. exd6 {[%clk 0:02:54]}  Qxd6 {[%clk 0:02:42]} 8. O-O {[%clk 0:02:53]}  g6 {[%clk 0:02:41]} 9. h3 {[%clk 0:02:46]}  Bg7 {[%clk 0:02:41]} 10. Re1 {[%clk 0:02:46]}  O-O {[%clk 0:02:41]} 11. Na3 {[%clk 0:02:44]}  Rd8 {[%clk 0:02:30]} 12. Qe2 {[%clk 0:02:42]}  e6 {[%clk 0:02:30]} 13. Bc2 {[%clk 0:02:36]}  Nd5 {[%clk 0:02:21]} 14. d3 {[%clk 0:02:29]}  Nf4 {[%clk 0:02:12]} 15. Bxf4 {[%clk 0:02:27]}  Qxf4 {[%clk 0:02:13]} 16. Rad1 {[%clk 0:02:24]}  b6 {[%clk 0:02:00]} 17. Qe4 {[%clk 0:02:18]}  Qxe4 {[%clk 0:01:57]} 18. dxe4 {[%clk 0:02:18]}  Ba6 {[%clk 0:01:57]} 19. Ba4 {[%clk 0:02:12]}  Ne5 {[%clk 0:01:53]} 20. Nxe5 {[%clk 0:02:08]}  Bxe5 {[%clk 0:01:54]} 21. Bb5 {[%clk 0:02:04]}  Bb7 {[%clk 0:01:52]} 22. Bd3 {[%clk 0:01:47]}  Rd7 {[%clk 0:01:43]} 23. Bb5 {[%clk 0:01:41]}  Rdd8 {[%clk 0:01:43]} 24. Bd3 {[%clk 0:01:41]}  Kg7 {[%clk 0:01:42]} 25. Nc4 {[%clk 0:01:40]}  Bc7 {[%clk 0:01:41]} 26. Bc2 {[%clk 0:01:38]}  Ba6 {[%clk 0:01:40]} 27. Ne3 {[%clk 0:01:37]}  Bf4 {[%clk 0:01:31]} 28. g3 {[%clk 0:01:32]}  Be5 {[%clk 0:01:29]} 29. f4 {[%clk 0:01:30]}  Bc7 {[%clk 0:01:28]} 30. Kf2 {[%clk 0:01:28]}  h6 {[%clk 0:01:25]} 31. e5 {[%clk 0:01:24]}  Bb7 {[%clk 0:01:23]} 32. Ng4 {[%clk 0:01:21]}  b5 {[%clk 0:01:22]} 33. Nf6 {[%clk 0:01:18]}  c4 {[%clk 0:01:18]} 34. Be4 {[%clk 0:01:17]}  Bb6+ {[%clk 0:01:12]} 35. Kf3 {[%clk 0:01:15]}  Bxe4+ {[%clk 0:01:00]} 36. Nxe4 {[%clk 0:01:06]}  Kf8 {[%clk 0:00:39]} 37. Nd6 {[%clk 0:01:05]}  a6 {[%clk 0:00:38]} 38. a4 {[%clk 0:01:00]}  Bc7 {[%clk 0:00:28]} 39. Nb7 {[%clk 0:00:53]}  Rdb8 {[%clk 0:00:24]} 40. Nc5 {[%clk 0:00:43]}  Rd8 {[%clk 0:00:22]} 41. Ke2 {[%clk 0:00:30]}  Bb6 {[%clk 0:00:20]} 42. Ne4 {[%clk 0:00:28]}  bxa4 {[%clk 0:00:19]} 43. Nd6 {[%clk 0:00:25]}  Rab8 {[%clk 0:00:19]} 44. Nxc4 {[%clk 0:00:25]}  Bc5 {[%clk 0:00:16]} 45. Rxd8+ {[%clk 0:00:23]}  Rxd8 {[%clk 0:00:17]} 46. Rd1 {[%clk 0:00:23]}  Rxd1 {[%clk 0:00:12]} 47. Kxd1 {[%clk 0:00:23]}  Bf2 {[%clk 0:00:13]} 48. g4 {[%clk 0:00:20]}  Bg3 {[%clk 0:00:13]} 49. f5 {[%clk 0:00:18]}  gxf5 {[%clk 0:00:14]} 50. gxf5 {[%clk 0:00:19]}  exf5 {[%clk 0:00:15]} 51. Ke2 {[%clk 0:00:18]}  Ke7 {[%clk 0:00:16]} 52. Kf3 {[%clk 0:00:18]}  Bh2 {[%clk 0:00:14]} 53. Ke3 {[%clk 0:00:08]}  Ke6 {[%clk 0:00:13]} 54. Kd4 {[%clk 0:00:09]}  Bg1+ {[%clk 0:00:12]} 55. Kd3 {[%clk 0:00:09]}  Bc5 {[%clk 0:00:11]} 56. h4 {[%clk 0:00:07]}  Kd5 {[%clk 0:00:09]} 57. h5 {[%clk 0:00:06]}  f4 {[%clk 0:00:06]} 58. Nd2 {[%clk 0:00:04]}  Kxe5 {[%clk 0:00:06]} 59. Nf3+ {[%clk 0:00:04]}  Kf5 {[%clk 0:00:07]} 60. Kc4 {[%clk 0:00:03]}  Be3 {[%clk 0:00:05]} 61. Kb4 {[%clk 0:00:03]}  Bc1 {[%clk 0:00:05]} 62. Kxa4 {[%clk 0:00:02]}  Bxb2 {[%clk 0:00:06]} 63. c4 {[%clk 0:00:03]}  Kg4 {[%clk 0:00:06]} 64. Ne5+ {[%clk 0:00:03]}  Bxe5 {[%clk 0:00:06]} 65. Ka5 {[%clk 0:00:02]}  f3 {[%clk 0:00:07]} 66. Kxa6 {[%clk 0:00:03]}  f2 {[%clk 0:00:08]} 67. c5 {[%clk 0:00:03]}  f1=Q+ {[%clk 0:00:08]} 0-1


[Site "https://www.chess.com"]